[Event "15th Paleochora Open 2022"]
[Site "Paleochora"]
[Date "2022.07.18"]
[Round "2.14"]
[White "Nevednichy, Vladislav"]
[Black "Monpeurt, Cyrielle"]
[Result "1-0"]
[ECO "C50"]
[WhiteElo "2473"]
[BlackElo "2159"]
[Annotator "TA"]
[PlyCount "115"]
[EventDate "2022.07.17"]
[EventType "swiss"]
[EventCountry "GRE"]
[SourceTitle "playchess.com"]
[Source "ChessBase"]
[SourceQuality "1"]
[TimeControl "40/5400+30:900+30"]

{[%evp 12,115,16,16,25,31,27,21,13,20,16,14,37,33,30,30,39,29,39,30,32,23,29,0,25,22,20,28,18,8,17,8,16,12,15,18,20,-12,-18,-19,-10,-14,-16,-17,0,0,5,-20,0,0,16,4,0,0,205,190,189,25,69,55,41,-66,0,0,179,175,131,120,427,265,500,477,932,936,1679,1644,1336,489,1476,1570,1502,1128,1439,893,1020,0,1585,1523,1387,1439,1457,1427,1443,1356,1395,1407,1338,1291,1868,1795,4595,3760,29985,29986,29986,29983]} 1. e4 {[%emt 0:00:04]} e5 {[%emt 0:00:07]} 2. Nf3 {[%emt 0:00:05]} Nc6 {[%emt 0:00:06]} 3. Bc4 {[%emt 0:00:04]} Bc5 {[%emt 0:00:13]} 4. d3 {[%emt 0:00:36]} Nf6 {[%emt 0:00:32]} 5. O-O {[%emt 0:00:21]} O-O {[%emt 0:01:03]} 6. Bg5 {[%emt 0:00:21]} h6 {[%emt 0:02:20]} 7. Bh4 {[%emt 0:00:05]} Be7 {[%emt 0:00:05] C50: Hungarian Defence and Giuoco Pianissimo.} 8. Bg3 {[%emt 0:00:32]} d6 {[%emt 0:00:29]} 9. a4 {[%emt 0:00:13]} Na5 {[%emt 0:05:47] The position is equal.} 10. Ba2 {[%emt 0:00:19]} c5 {[%emt 0:00:09] [#]} 11. Nbd2 $146 {[%emt 0:02:24]} ({Predecessor:} 11. h3 Nc6 12. c3 Be6 13. Bxe6 fxe6 14. Na3 Qe8 15. Rb1 Nh5 16. Bh2 Nf4 17. Bxf4 Rxf4 {½-½ (61) Duda,J (2753)-So,W (2770) chess24.com INT 2020}) 11... Re8 {[%emt 0:08:23]} 12. c3 {[%emt 0:00:23]} Bf8 {[%emt 0:02:18]} 13. Re1 {[%emt 0:07:24]} Nc6 {[%emt 0:04:23]} 14. h3 {[%emt 0:03:19]} Be6 {[%emt 0:03:10]} 15. Bc4 {[%emt 0:01:11]} g6 {[%emt 0:10:54]} 16. Bh4 {[%emt 0:11:14]} Bg7 {[%emt 0:01:26]} 17. Rb1 {[%emt 0:02:07]} Qd7 {[%emt 0:03:08]} (17... d5 $5 {[%cal Rd5c4]} 18. Bb5 Qc7 $11) 18. Bxf6 {[%emt 0:03:32]} Bxf6 {[%emt 0:00:06]} 19. b4 {[%emt 0:15:47]} cxb4 {[%emt 0:04:59]} 20. cxb4 {[%emt 0:00:03]} Rac8 {[%emt 0:00:12]} 21. a5 {[%emt 0:02:21]} Bg7 {[%emt 0:05:14]} 22. Qa4 {[%emt 0:18:25]} d5 {[%emt 0:06:06]} 23. exd5 {[%emt 0:01:25]} Bxd5 {[%emt 0:00:06]} 24. Ne4 {[%emt 0:01:14]} (24. b5 $5 {[%cal Rc4d5]} Bxf3 25. Nxf3 $11) 24... Red8 {[%emt 0:07:19]} 25. b5 {[%emt 0:12:02] [#] Hoping for Bxd5.} Ne7 {[%emt 0:00:54]} 26. a6 {[%emt 0:05:53]} b6 {[%emt 0:01:29]} 27. Qb3 {[%emt 0:00:07]} Kh8 {[%emt 0:03:15]} 28. Ned2 {[%emt 0:03:13] Pair of Knights!} Qf5 {[%emt 0:03:25]} 29. Re3 {[%emt 0:02:06]} g5 {[%emt 0:03:33]} 30. Rbe1 {[%emt 0:02:07][%cal Rf3e5]} f6 {[%emt 0:01:25]} 31. d4 {[%emt 0:03:51][%cal Rd4e5]} Bxc4 $1 {[%emt 0:04:36]} 32. Nxc4 {[%emt 0:00:02][%cal Rd4e5]} Nd5 $2 {[%emt 0:00:05]} (32... Qe6 $1 $11 33. Nb2 Qxb3 34. Rxb3 Ng6) 33. Re4 $18 {[%emt 0:02:46][%cal Rd4e5]} Nf4 {[%emt 0:02:32]} 34. Ncd2 $2 {[%emt 0:00:12]} (34. dxe5 $18 Rd3 35. Nd4) 34... g4 {[%emt 0:03:49]} 35. hxg4 {[%emt 0:00:02]} ({Worse is} 35. Nh4 Qg5 36. Qg3 f5 37. Nxf5 Qxf5 $17) 35... Qxg4 {[%emt 0:00:06][%csl Gf4][%cal Rg4g2] [#]} 36. Rxf4 {[%emt 0:01:54]} ({Better is} 36. g3 $14) 36... Qxf4 {[%emt 0:00:31]} (36... exf4 $15 37. Qf7 Rd7 38. Re8+ Rxe8 39. Qxe8+ Kh7 40. Qe4+ Qg6 41. Qxf4 f5) 37. Qf7 $1 $11 {[%emt 0:00:14]} Rc2 $2 {[%emt 0:03:12]} (37... e4 $11 {and Black is okay.} 38. Nxe4 Re8) 38. g3 $18 {[%emt 0:01:00]} Qg4 {[%emt 0:00:12]} 39. Qxa7 {[%emt 0:00:08]} Rdc8 $2 {[%emt 0:06:47][%mdl 8192]} (39... Qe6 $16) 40. Qb7 {[%emt 0:00:00]} ({Less strong is} 40. dxe5 fxe5 41. Qxb6 e4 42. Rxe4 Qd7 $18) 40... R2c7 $2 {[%emt 0:00:00]} (40... Qe6 {was worth a try.} 41. dxe5 R2c7 42. exf6 Qxe1+ 43. Nxe1 Rxb7) 41. Qxb6 {[%emt 0:00:26]} Rc1 {[%emt 0:04:35]} (41... Qd7 $142 42. Qa5 Qd5) 42. a7 {[%emt 0:02:19]} e4 {[%emt 0:04:57]} 43. Rxc1 {[%emt 0:08:21]} Rxc1+ {[%emt 0:00:07]} 44. Kh2 {[%emt 0:00:08]} (44. Kg2 $142 exf3+ 45. Nxf3) 44... Rc8 {[%emt 0:07:23]} (44... Ra1 $142 45. Qb7 exf3 46. a8=Q+ Rxa8 47. Qxa8+ Kh7) 45. Nh4 {[%emt 0:01:49]} e3 {[%emt 0:01:02]} 46. fxe3 {[%emt 0:00:40]} Qe2+ {[%emt 0:00:10]} 47. Ng2 {[%emt 0:00:15]} Qh5+ {[%emt 0:00:50]} 48. Nh4 {[%emt 0:02:03]} (48. Kg1 $142 Rc1+ 49. Kf2) 48... Qe2+ {[%emt 0:00:10]} 49. Kh3 {[%emt 0:00:55]} f5 {[%emt 0:03:24]} 50. Qb8 {[%emt 0:03:19]} Qg4+ {[%emt 0:00:44]} 51. Kh2 {[%emt 0:00:01]} Qe2+ {[%emt 0:00:38]} 52. Ng2 {[%emt 0:00:11]} Qh5+ {[%emt 0:00:09]} 53. Kg1 {[%emt 0:00:14]} Qe8 {[%emt 0:00:25]} 54. Qb7 {[%emt 0:00:13]} Rc1+ {[%emt 0:00:52]} 55. Nf1 {[%emt 0:00:46]} Ra1 {[%emt 0:01:11]} 56. Qb8 {[%emt 0:00:07]} Qf8 {[%emt 0:00:36]} 57. b6 {[%emt 0:00:13]} f4 {[%emt 0:00:49]} 58. Nxf4 {[%emt 0:00:13] Weighted Error Value: White=0.44/Black=0.64} 1-0

[Event "15th Paleochora Open 2022"]
[Site "Paleochora"]
[Date "2022.07.18"]
[Round "2.15"]
[White "Spyropoulos, Nikolaos"]
[Black "Schmit, Vincent"]
[Result "1-0"]
[ECO "E54"]
[WhiteElo "2446"]
[BlackElo "2146"]
[Annotator "TA"]
[PlyCount "39"]
[EventDate "2022.07.17"]
[EventType "swiss"]
[EventCountry "GRE"]
[SourceTitle "playchess.com"]
[Source "ChessBase"]
[SourceQuality "1"]
[TimeControl "40/5400+30:900+30"]

{[%evp 21,39,39,59,57,58,0,0,4,57,57,551,560,5557,487,477,483,463,458,858,829]} 1. d4 {[%emt 0:00:03]} Nf6 {[%emt 0:01:04]} 2. Nf3 {[%emt 0:00:05]} d5 {[%emt 0:00:53]} 3. c4 {[%emt 0:00:30]} e6 {[%emt 0:01:41]} 4. e3 {[%emt 0:09:14]} a6 {[%emt 0:00:30]} 5. Nc3 {[%emt 0:10:00]} dxc4 {[%emt 0:03:56]} 6. a4 {[%emt 0:00:13]} c5 {[%emt 0:01:20]} 7. Bxc4 {[%emt 0:00:59]} cxd4 {[%emt 0:00:26]} 8. exd4 {[%emt 0:00:55]} b6 {[%emt 0:08:29]} 9. O-O {[%emt 0:20:57]} Bb7 {[%emt 0:03:09]} 10. Bg5 {[%emt 0:02:36]} Be7 {[%emt 0:06:35]} 11. Qe2 {[%emt 0:00:59]} O-O {[%emt 0:01:30]} 12. Rad1 {[%emt 0:10:12][%cal Od4d5] [#] E54: Nimzo-Indian: Rubinstein: Main Line: 7...dxc4 8 Bxc4.} Re8 $146 {[%emt 0:12:03]} ({Predecessor:} 12... Nbd7 13. Rfe1 h6 14. Bh4 Re8 15. Ne5 Nxe5 16. dxe5 Nd5 17. Bxd5 Bxd5 18. Bxe7 Rxe7 19. Nxd5 exd5 {½-½ (40) Pelletier,Y (2555)-Moroni,L (2584) Corte 2022}) 13. Bxf6 {[%emt 0:15:52]} (13. Ne5 $14 Nd5 {[#]} 14. Qh5 $1) 13... Bxf6 $11 {[%emt 0:01:29]} 14. Ne4 {[%emt 0:00:09][%cal Od4d5] The position is equal.} Be7 {[%emt 0:23:37]} (14... Nc6 $11) 15. Ne5 $14 {[%emt 0:02:01][%cal Oe5f7] Nxf7! is the strong threat.} Nc6 $2 {[%emt 0:05:52][%mdl 8192] [#] This move loses the game for Black.} ({Black should try} 15... Rf8 $14) 16. Nxf7 $1 $18 {[%emt 0:06:34][%mdl 512] White is clearly winning.} Kxf7 {[%emt 0:00:03] [#]} (16... Qd7 17. d5) 17. Bxe6+ $1 {[%emt 0:00:07][%mdl 512]} Kxe6 {[%emt 0:08:09]} 18. d5+ {[%emt 0:01:32]} Kf7 {[%emt 0:00:40]} 19. dxc6 {[%emt 0:00:05][%mdl 64] Discovered Attack} Bxc6 {[%emt 0:02:38]} (19... Qc7 $142) 20. Qc4+ {[%emt 0:01:00] Weighted Error Value: White=0.59/Black=1.54} 1-0

[Event "15th Paleochora Open 2022"]
[Site "Paleochora"]
[Date "2022.07.18"]
[Round "2.16"]
[White "Marinakis, Hristos"]
[Black "Barbot, Pierre"]
[Result "0-1"]
[ECO "C41"]
[WhiteElo "2161"]
[BlackElo "2438"]
[Annotator "TA"]
[PlyCount "105"]
[EventDate "2022.07.17"]
[EventType "swiss"]
[EventCountry "GRE"]
[SourceTitle "playchess.com"]
[Source "ChessBase"]
[SourceQuality "1"]
[TimeControl "40/5400+30:900+30"]

{[%evp 14,105,23,27,45,31,60,55,66,49,84,85,89,84,83,83,71,64,84,68,59,68,67,56,72,67,91,97,106,112,140,143,153,33,45,0,0,0,0,-77,-57,-56,-55,-50,-54,-70,-58,-133,-143,-135,-140,-127,-132,-212,-191,-187,-157,-208,-158,-242,-258,-244,-201,-306,-307,-344,-310,-1064,-1002,-875,-867,-944,-992,-1112,-1129,-939,-843,-1925,-1782,-2554,-1523,-29976,-29977,-29978,-29979,-29979,-29980,-29980,-29980,-29980,-29981,-29982,-29983,-29981]} 1. e4 {[%emt 0:00:04]} d6 {[%emt 0:00:04]} 2. d4 {[%emt 0:00:05]} Nf6 {[%emt 0:00:04]} 3. Nc3 {[%emt 0:00:08]} e5 {[%emt 0:00:04]} 4. Nf3 {[%emt 0:00:11]} Nbd7 {[%emt 0:00:05]} 5. Bc4 {[%emt 0:00:24]} Be7 {[%emt 0:00:08]} 6. O-O {[%emt 0:00:50]} O-O {[%emt 0:00:04]} 7. Re1 {[%emt 0:04:23]} c6 {[%emt 0:00:06]} 8. a4 {[%emt 0:01:47]} exd4 {[%emt 0:00:05] 8...h6 is becoming the main line. C41: Philidor Defence.} 9. Nxd4 {[%emt 0:09:58]} Nb6 {[%emt 0:00:22]} 10. Ba2 {[%emt 0:03:30]} a5 {[%emt 0:00:12] White is slightly better.} 11. h3 {[%emt 0:04:10]} Nfd7 {[%emt 0:10:03]} 12. Nf5 {[%emt 0:12:23]} Nc5 {[%emt 0:01:58]} 13. Nxe7+ {[%emt 0:00:13]} Qxe7 {[%emt 0:00:06]} 14. Qd4 {[%emt 0:10:59] [#] Black must now prevent Bf4.} Be6 $146 {[%emt 0:03:38]} ({Predecessor:} 14... Qe5 15. Qxe5 dxe5 16. Be3 Nbxa4 17. Nxa4 Nxa4 18. Bb3 b5 19. Bxa4 bxa4 20. Rxa4 f5 21. exf5 Bxf5 {½-½ (53) Albaric,E (2258)-Msellek,I (2261) Nancy 2020}) 15. Bf4 {[%emt 0:08:47][%cal Bc1f4,Bf4g3,Bg3h4][%mdl 32]} Rad8 {[%emt 0:00:50]} 16. Rad1 {[%emt 0:01:00][%cal Rf4d6]} Bxa2 {[%emt 0:07:19]} 17. Nxa2 {[%emt 0:00:07][%cal Rf4d6]} Nc8 {[%emt 0:00:04]} 18. Bg3 {[%emt 0:06:16]} Rfe8 {[%emt 0:00:10]} 19. Nc3 {[%emt 0:03:14] Inhibits d5.} h5 {[%emt 0:03:23]} 20. f4 {[%emt 0:04:51]} Na6 {[%emt 0:03:50]} 21. Qf2 {[%emt 0:04:23]} Nb4 {[%emt 0:02:07]} 22. Bh4 {[%emt 0:01:04]} f6 {[%emt 0:00:06]} 23. e5 {[%emt 0:01:29]} ({White should try} 23. Rc1 $16) 23... dxe5 $14 {[%emt 0:00:48]} 24. Rxd8 {[%emt 0:01:29]} Qxd8 {[%emt 0:00:07]} 25. Rxe5 {[%emt 0:06:01][%mdl 64] [#] Pin} Nd6 {[%emt 0:09:43]} 26. Qe2 {[%emt 0:03:03]} (26. Rxe8+ $11 {keeps the balance.} Qxe8 27. Qc5) 26... Qd7 $17 {[%emt 0:03:24]} 27. Rxe8+ {[%emt 0:05:21]} Qxe8 {[%emt 0:00:25]} 28. Qxe8+ {[%emt 0:01:05]} Nxe8 $15 {[%emt 0:00:04][%mdl 4096] Endgame KBN-KNN} 29. Bf2 {[%emt 0:00:07]} Nxc2 {[%emt 0:01:42]} 30. Bb6 {[%emt 0:00:39]} (30. Kf1 $15) 30... Nd6 $17 {[%emt 0:00:06][%cal Be8d6,Bd6c4,Bc4b2][%mdl 32]} 31. Bxa5 {[%emt 0:00:12]} Nc4 {[%emt 0:00:06][%csl LRa5,LRb2]} 32. Bc7 {[%emt 0:02:46]} Nxb2 {[%emt 0:00:05]} 33. a5 {[%emt 0:01:32] [#]} (33. g4 $17 {keeps fighting.}) 33... f5 $1 $19 {[%emt 0:03:49]} 34. g4 {[%emt 0:02:24]} g6 {[%emt 0:02:47][%cal Bg7g6,Bg6f5][%mdl 32]} ({Not} 34... fxg4 35. hxg4 hxg4 36. Ne4 $15) 35. Kf2 {[%emt 0:00:52]} (35. gxh5 $17 gxh5 36. Kf2) 35... Kf7 {[%emt 0:00:05]} ({And not} 35... fxg4 36. hxg4 hxg4 37. Ne4 $15) 36. Kg3 {[%emt 0:01:34]} (36. gxf5 $17 gxf5 37. Bb6) 36... hxg4 {[%emt 0:04:31]} 37. hxg4 {[%emt 0:00:04]} Ke6 {[%emt 0:00:04]} 38. gxf5+ {[%emt 0:01:06]} (38. Bb6 {is a better defense.}) 38... gxf5 {[%emt 0:00:02]} ({Worse is} 38... Kxf5 39. Ne2 $19) 39. Kh4 {[%emt 0:00:25]} Ne3 {[%emt 0:01:11]} 40. Kg5 $2 {[%emt 0:00:00]} (40. Ne2) 40... Nd5 {[%emt 0:00:00]} 41. Ne2 {[%emt 0:03:22]} Nxc7 {[%emt 0:01:57]} 42. Nd4+ {[%emt 0:00:04]} Kd5 {[%emt 0:00:32]} 43. Nxf5 {[%emt 0:00:13]} Ne6+ {[%emt 0:00:35]} 44. Kg4 {[%emt 0:00:24]} Nd3 {[%emt 0:00:30]} 45. Ne3+ {[%emt 0:01:34]} Kd4 {[%emt 0:02:42]} 46. Nc2+ {[%emt 0:01:30]} Kc3 {[%emt 0:02:37]} 47. f5 {[%emt 0:00:32]} Ne5+ {[%emt 0:00:04] Black mates.} 48. Kg3 {[%emt 0:00:50]} Kxc2 {[%emt 0:01:25]} 49. fxe6 {[%emt 0:00:04]} Ng6 {[%emt 0:00:03]} 50. Kg4 {[%emt 0:00:33]} Kb3 {[%emt 0:00:39]} 51. Kf5 {[%emt 0:00:39]} Ne7+ {[%emt 0:00:05]} 52. Ke5 {[%emt 0:00:32]} Nc8 {[%emt 0:01:50]} 53. Kd4 {[%emt 0:00:30] Black used his chance.  Weighted Error Value: White=0.74/Black=0.22 (precise)} 0-1

[Event "15th Paleochora Open 2022"]
[Site "Paleochora"]
[Date "2022.07.18"]
[Round "2.17"]
[White "Vlachos, Anatole"]
[Black "Flasik, Radoslav"]
[Result "1-0"]
[ECO "B31"]
[WhiteElo "2433"]
[BlackElo "2121"]
[Annotator "TA"]
[PlyCount "63"]
[EventDate "2022.07.17"]
[EventType "swiss"]
[EventCountry "GRE"]
[SourceTitle "playchess.com"]
[Source "ChessBase"]
[SourceQuality "1"]
[TimeControl "40/5400+30:900+30"]

{[%evp 13,63,31,33,19,69,66,77,77,93,88,112,93,183,33,85,30,61,77,74,0,0,0,0,0,186,157,168,125,176,157,312,306,301,392,356,307,562,512,544,571,569,565,515,515,508,414,627,617,615,620,622,582]} 1. e4 {[%emt 0:00:03]} c5 {[%emt 0:00:11]} 2. Nf3 {[%emt 0:00:06]} Nc6 {[%emt 0:00:15]} 3. Bb5 {[%emt 0:00:05]} g6 {[%emt 0:00:30]} 4. Bxc6 {[%emt 0:00:06]} dxc6 {[%emt 0:00:18]} 5. d3 {[%emt 0:00:11]} Bg7 {[%emt 0:00:26]} 6. h3 {[%emt 0:00:15]} e5 {[%emt 0:00:46]} 7. Be3 {[%emt 0:00:50]} Qe7 {[%emt 0:00:37]} 8. O-O {[%emt 0:01:30] B31: Sicilian: 2...Nc6 3 Bb5 g6.} f6 {[%emt 0:11:49]} (8... Nf6 $11) 9. Qd2 $14 {[%emt 0:02:38]} b6 {[%emt 0:05:07]} 10. a3 {[%emt 0:08:26][%cal Ba2a3,Ba3b4][%mdl 32] [#] White is better.} Bb7 $146 {[%emt 0:06:08]} ({Predecessor:} 10... Be6 11. b4 f5 12. Qc3 f4 13. Bc1 Nh6 14. bxc5 Qxc5 15. Qxc5 bxc5 16. Ng5 Bd7 {1-0 (46) Hristodorescu,D (2224)-Svarc,R (2000) Calvia 2018}) 11. b4 {[%emt 0:00:57] White is more active.} cxb4 {[%emt 0:00:48]} 12. axb4 {[%emt 0:00:03]} Qc7 {[%emt 0:10:57] [#]} (12... Qf7 $16) 13. Nh2 {[%emt 0:14:19]} ({White should try} 13. d4 $1 $18) 13... Ne7 {[%emt 0:06:06]} (13... f5 $14) 14. f4 {[%emt 0:00:47]} ({Better is} 14. c4 $16) 14... O-O {[%emt 0:02:13]} 15. fxe5 {[%emt 0:05:42]} Qxe5 {[%emt 0:02:54]} 16. Nc3 {[%emt 0:00:30]} (16. c3 $16) 16... f5 $11 {[%emt 0:06:52]} 17. d4 {[%emt 0:02:26]} Qe6 {[%emt 0:01:17]} 18. Bh6 {[%emt 0:00:30]} Rfd8 $2 {[%emt 0:20:39]} (18... Bxh6 $11 {and Black has nothing to worry.} 19. Qxh6 Qc4) 19. Bxg7 $18 {[%emt 0:02:07]} Kxg7 {[%emt 0:00:04]} 20. Rae1 {[%emt 0:07:31] Hoping for exf5.} Qd6 {[%emt 0:02:33]} (20... Qd7 $16 {is a better defense.}) 21. Nf3 {[%emt 0:03:33]} Rd7 $2 {[%emt 0:01:52]} (21... Rf8 $16 {was necessary.}) 22. exf5 {[%emt 0:03:41]} Nxf5 {[%emt 0:01:28]} 23. Ne4 {[%emt 0:00:06]} Qd5 {[%emt 0:01:48]} 24. c3 {[%emt 0:00:02]} ({Less strong is} 24. Qg5 Rf8 $16) 24... Re8 $2 {[%emt 0:02:14] [#]} (24... Ba6 {keeps fighting.}) 25. Nf6 $1 {[%emt 0:00:21][%mdl 512]} Rxe1 {[%emt 0:02:28]} 26. Nxd5 {[%emt 0:00:09] Pair of Knights!} Rxf1+ {[%emt 0:00:07]} 27. Kxf1 {[%emt 0:00:02]} Ba6+ {[%emt 0:03:59]} 28. Kg1 {[%emt 0:01:23]} cxd5 {[%emt 0:00:02]} 29. Ne5 {[%emt 0:00:17]} Rc7 {[%emt 0:01:11]} (29... Re7 $142 30. Qa2 Bc4 31. Nxc4 dxc4 32. Qxc4 h5) 30. g4 {[%emt 0:01:49] White is clearly winning.} Nd6 {[%emt 0:01:37]} 31. Qg5 {[%emt 0:00:19] Inhibits Re7.} Ne8 {[%emt 0:04:29]} 32. Qd8 {[%emt 0:01:26] Weighted Error Value: White=0.24 (precise) /Black=0.62} 1-0

[Event "15th Paleochora Open 2022"]
[Site "Paleochora"]
[Date "2022.07.18"]
[Round "2.18"]
[White "Demchenko, Svitlana"]
[Black "Barp, Alberto"]
[Result "1-0"]
[ECO "D02"]
[WhiteElo "2122"]
[BlackElo "2423"]
[Annotator "TA"]
[PlyCount "147"]
[EventDate "2022.07.17"]
[EventType "swiss"]
[EventCountry "GRE"]
[SourceTitle "playchess.com"]
[Source "ChessBase"]
[SourceQuality "1"]
[TimeControl "40/5400+30:900+30"]

{[%evp 11,147,-2,7,8,12,13,10,6,3,13,15,11,12,-10,0,-7,0,0,0,0,26,0,0,0,3,-14,12,9,13,0,0,0,0,0,0,0,0,0,21,0,21,0,6,5,11,18,14,0,0,0,14,0,0,0,3,0,14,8,13,10,56,56,58,41,47,16,59,52,64,57,70,68,93,22,26,16,21,4,21,6,112,139,140,112,115,72,168,90,103,40,41,41,41,41,40,33,29,0,5,0,0,0,0,0,27,27,32,27,45,46,55,8,8,8,8,4,4,6,7,8,28,8,310,319,382,357,563,335,375,368,353,351,1311,1073,29981,29982,29982,29983]} 1. d4 {[%emt 0:00:03]} Nf6 {[%emt 0:00:45]} 2. Nf3 {[%emt 0:00:09]} d5 {[%emt 0:00:48]} 3. Bf4 {[%emt 0:00:12]} c5 {[%emt 0:00:32]} 4. e3 {[%emt 0:00:07]} Nc6 {[%emt 0:00:06]} 5. Nbd2 {[%emt 0:00:17]} e6 {[%emt 0:00:41]} 6. c3 {[%emt 0:00:36]} cxd4 {[%emt 0:00:06] 6...Nh5 is setting a new trend.} 7. exd4 {[%emt 0:00:09] D02: 1 d4 d5 2 Nf3 sidelines, including 2...Nf6 3 g3 and 2...Nf6 3 Bf4.} Nh5 {[%emt 0:00:08]} 8. Be3 {[%emt 0:00:06]} Bd6 {[%emt 0:00:14] Inhibits Ne5.} 9. Ne5 {[%emt 0:00:14] The position is equal.} Nf6 {[%emt 0:00:14]} 10. f4 {[%emt 0:00:14]} Qb6 {[%emt 0:00:05]} 11. Qb3 {[%emt 0:00:45]} Ng8 {[%emt 0:00:09] [#]} 12. Bb5 $146 {[%emt 0:05:25]} ({Predecessor:} 12. Bd3 Nge7 13. g3 f6 14. Nef3 Bd7 15. O-O O-O 16. Qc2 Nf5 17. Rae1 Rac8 18. Qb1 {1-0 (34) Aronian,L (2772)-Aditya,M (2459) Warsaw 2021}) 12... Nge7 {[%emt 0:01:35]} 13. c4 {[%emt 0:07:32]} dxc4 {[%emt 0:12:05]} 14. Ndxc4 {[%emt 0:02:45]} Qd8 {[%emt 0:00:14]} 15. Qa4 {[%emt 0:06:55][%cal Re5c6]} Bc7 {[%emt 0:10:58]} 16. O-O {[%emt 0:10:03][%cal Re5c6]} O-O {[%emt 0:01:23]} 17. Nxc6 {[%emt 0:03:53]} bxc6 {[%emt 0:00:52]} 18. Bxc6 {[%emt 0:00:05]} Nxc6 {[%emt 0:00:41]} 19. Qxc6 {[%emt 0:00:04]} Rb8 {[%emt 0:00:45]} 20. Rf2 {[%emt 0:00:51]} Bb7 {[%emt 0:10:20]} 21. Qa4 {[%emt 0:00:16]} Qd5 {[%emt 0:07:38]} 22. Rc1 {[%emt 0:04:03]} Rfc8 {[%emt 0:03:51][%cal Bf8c8,Bc8c6,Bc6a6][%mdl 32]} 23. b3 {[%emt 0:06:41]} Qe4 {[%emt 0:04:30]} 24. Qb4 {[%emt 0:07:10]} Bd5 {[%emt 0:08:39] A strong pair of Bishops.} 25. Qe1 {[%emt 0:02:58]} h6 {[%emt 0:10:34]} 26. Qe2 {[%emt 0:06:31]} Bd8 {[%emt 0:04:32]} 27. Qc2 {[%emt 0:04:30]} Rc6 {[%emt 0:05:35]} 28. Qxe4 {[%emt 0:04:09]} Bxe4 {[%emt 0:00:51]} 29. Rff1 {[%emt 0:00:09]} Ra6 {[%emt 0:09:39]} 30. Rf2 {[%emt 0:00:34]} Rc6 {[%emt 0:00:48]} 31. Rff1 {[%emt 0:02:23]} Ra6 {[%emt 0:01:57]} 32. Rf2 {[%emt 0:00:21]} f6 {[%emt 0:00:16]} 33. Nd2 {[%emt 0:04:39][%cal Bc4d2,Bd2b1,Bb1c3,Bc3a4,Ba4c5][%mdl 32]} Bd5 {[%emt 0:00:35]} 34. Nb1 {[%emt 0:00:42]} Bb6 {[%emt 0:03:21]} 35. Nc3 {[%emt 0:01:05]} Rd8 {[%emt 0:01:23]} (35... Bc6 $11) 36. Na4 $14 {[%emt 0:00:46]} Ba5 {[%emt 0:01:04]} 37. Rfc2 {[%emt 0:01:15]} (37. Nc5 $5 {[%cal Rc5a6]} Rc6 38. a3 $14) 37... Rad6 {[%emt 0:00:20]} 38. Nc5 {[%emt 0:02:50]} Rc8 {[%emt 0:00:41]} 39. a3 {[%emt 0:02:38][%cal Ba2a3,Ba3a4][%mdl 32]} Re8 {[%emt 0:00:30]} 40. b4 {[%emt 0:00:00]} Bb6 {[%emt 0:00:00]} 41. a4 {[%emt 0:02:50]} a5 {[%emt 0:08:37]} 42. bxa5 {[%emt 0:01:38]} (42. b5 $16) 42... Bxa5 $11 {[%emt 0:00:09]} 43. Rb2 {[%emt 0:00:06]} Ra8 {[%emt 0:03:05]} 44. Rcb1 {[%emt 0:02:05]} Ra7 {[%emt 0:00:08]} 45. Bd2 {[%emt 0:04:43]} Ba8 {[%emt 0:03:18]} (45... Bc7 $11 {remains equal.}) 46. Bxa5 $16 {[%emt 0:04:19]} Rxa5 {[%emt 0:00:01]} 47. Rb5 {[%emt 0:00:22]} Ra7 {[%emt 0:00:34]} 48. R5b4 {[%emt 0:00:18]} (48. R1b4 {is more complex.} Kf7 49. Rb8 Rd5 50. Rc8) 48... Rc6 {[%emt 0:02:34]} (48... g5 $16 {was necessary.}) 49. Rb6 {[%emt 0:01:23]} (49. Rb8+ $18 Kf7 50. Rd8) 49... e5 {[%emt 0:00:35]} 50. fxe5 {[%emt 0:02:13] White is more active.} ({White should play} 50. Rb8+ $16 Kh7 51. f5 (51. fxe5 fxe5 52. Rd8 exd4 $11) 51... exd4 52. Ne6) 50... fxe5 $14 {[%emt 0:00:02]} 51. Rxc6 {[%emt 0:00:48]} Bxc6 {[%emt 0:00:01]} 52. dxe5 $16 {[%emt 0:00:08][%mdl 4096] Endgame KRB-KRN} Ra5 {[%emt 0:00:11]} 53. Rc1 {[%emt 0:05:08]} Bxa4 {[%emt 0:00:05]} 54. e6 {[%emt 0:01:35]} Be8 {[%emt 0:02:04]} 55. Nb7 {[%emt 0:04:21]} Re5 {[%emt 0:00:34]} 56. Nd8 {[%emt 0:00:04]} Rd5 {[%emt 0:00:57]} 57. e7 {[%emt 0:01:32] [#] aiming for Rf1.} Rd7 {[%emt 0:00:18]} 58. Re1 {[%emt 0:00:42]} Kh7 {[%emt 0:00:31]} 59. Re6 {[%emt 0:02:20]} Ra7 {[%emt 0:00:52]} 60. Kf2 {[%emt 0:00:15]} g6 {[%emt 0:00:14]} 61. h4 {[%emt 0:00:51]} (61. Re3 $14 {is more appropriate.}) 61... h5 $11 {[%emt 0:00:23]} 62. Ke3 {[%emt 0:00:29]} Kg7 {[%emt 0:00:07]} 63. g3 {[%emt 0:00:35]} Ra3+ {[%emt 0:00:35]} 64. Kf4 {[%emt 0:00:22]} Ra4+ {[%emt 0:00:04]} 65. Ke5 {[%emt 0:01:33] Strongly threatening Nb7.} Ra5+ {[%emt 0:00:04]} 66. Kd4 {[%emt 0:00:54] Threatens to win with Nb7.} g5 $2 {[%emt 0:02:12][%mdl 8192] [#] A mistake that costs the game.} (66... Ra1 $11 {and Black is okay.}) 67. Nb7 $1 $18 {[%emt 0:02:03]} Ra4+ {[%emt 0:00:03]} 68. Ke5 {[%emt 0:01:09]} gxh4 {[%emt 0:00:02]} 69. gxh4 {[%emt 0:00:15] Hoping for Nd6.} Ra1 {[%emt 0:00:55]} 70. Nd6 {[%emt 0:00:44]} Re1+ {[%emt 0:00:09]} 71. Kf5 {[%emt 0:00:28]} Bd7 $2 {[%emt 0:01:32]} (71... Rf1+ 72. Kg5 Rg1+ 73. Kf4 Bd7) 72. e8=Q {[%emt 0:00:33] Intending Qg6+ and mate.} Bxe6+ {[%emt 0:00:13]} 73. Qxe6 {[%emt 0:00:05]} Rxe6 {[%emt 0:00:17]} 74. Kxe6 {[%emt 0:00:02] Weighted Error Value: White=0.12 (very precise) /Black=0.12 (very precise)} 1-0